bitfinex-derivatives/quotes_SOLF0:USTF0_20240907
["timestamp","ask_amount","ask_price","bid_price","bid_amount"]
[1725742675967,10.23,127.42,127.37,3.9255]
[1725742676872,3.9246,127.41,127.37,3.9255]
[1725742680177,3.9246,127.41,127.38,3.9253]
[1725742680398,14.1543,127.42,127.38,3.9253]
[1725742681671,3.9245,127.41,127.38,3.9253]
[1725742684376,3.9245,127.41,127.35,14.45433414]
[1725742685380,3.9245,127.41,127.38,3.9253]
[1725742686178,14.1543,127.42,127.38,3.9253]
[1725742691282,14.1543,127.42,127.39,3.925]
[1725742699091,3.9245,127.41,127.39,3.925]
[1725742701091,1.3215,127.45,127.37,10.23]
[1725742701297,1.3215,127.45,127.38,10.23]
[1725742701592,15.4749,127.45,127.41,3.9243]
[1725742701799,15.4749,127.45,127.42,3.9210299]
[1725742703594,15.4749,127.45,127.42,7.8452299]
[1725742716508,3.9234,127.45,127.43,3.9238]
[1725742716809,16.8388,127.46,127.43,3.9238]
[1725742721319,3.9233,127.45,127.43,3.9238]
[1725742727518,3.9233,127.45,127.42,7.8450299]
[1725742727821,3.9233,127.45,127.42,3.924]
[1725742728212,3.9233,127.45,127.42,7.81214387]
[1725742729019,3.9233,127.45,127.43,3.9238]
[1725742729320,2.6857,127.46,127.42,3.88814387]
[1725742729519,2.6857,127.46,127.4,10.23]
[1725742729821,2.6857,127.46,127.44,3.9234]
[1725742730622,6.6087,127.46,127.44,3.9234]
[1725742735620,6.6087,127.46,127.43,7.774456]
[1725742735816,6.6087,127.46,127.43,3.9236]
[1725742736020,3.9233,127.45,127.43,3.9236]
[1725742736827,3.9233,127.45,127.42,3.92159171]
[1725742736828,10.23,127.44,127.35,5.87191193]
[1725742737017,10.23,127.43,127.35,16.10191193]
[1725742737419,10.23,127.41,127.35,15.27541193]
[1725742737621,10.23,127.41,127.35,14.22301193]
[1725742739335,14.1546,127.41,127.38,3.9253]
[1725742744126,3.9246,127.41,127.38,3.9253]
[1725742752335,3.9243,127.42,127.39,3.9249]
[1725742759649,3.9243,127.42,127.4,3.9248]
[1725742760049,14.1545,127.41,127.35,3.99301193]
[1725742760243,14.1545,127.41,127.38,3.9252]
[1725742760443,14.1545,127.41,127.38,7.85107939]
[1725742760643,14.1545,127.41,127.38,3.9252]
[1725742761253,14.1545,127.41,127.38,7.80043555]
[1725742768159,3.9243,127.42,127.39,3.9249]
[1725742768346,14.1543,127.42,127.39,3.9249]
[1725742779965,10.23,127.4,127.33,107.34881755]
[1725742780166,10.23,127.39,127.33,107.34881755]
[1725742780360,10.23,127.39,127.33,111.23670323]
[1725742780863,10.23,127.37,127.35,3.9262]
[1725742781168,10.23,127.37,127.33,111.23670323]
[1725742781363,10.23,127.37,127.33,3.88788568]
[1725742781667,10.23,127.37,127.34,3.9265]
[1725742782257,14.1558,127.37,127.34,3.9265]
[1725742784359,10.23,127.36,127.33,3.9268]
[1725742784563,14.1561,127.36,127.33,7.8186558]
[1725742784763,15.5395,127.36,127.33,7.8186558]
[1725742787669,11.6134,127.36,127.33,7.8186558]
[1725742792471,10.23,127.34,127.26,0.828]
[1725742792671,10.23,127.34,127.27,10.23]
[1725742793263,14.1568,127.34,127.31,3.9275]
[1725742793977,14.1568,127.34,127.3,3.9277]
[1725742794271,14.1568,127.34,127.27,10.23]
[1725742795378,14.1568,127.34,127.31,3.9275]
[1725742800391,11.537,127.35,127.32,3.93118076]
[1725742800581,11.537,127.35,127.28,10.23]
[1725742800783,11.537,127.35,127.32,3.9271]
[1725742802291,15.4633,127.35,127.32,3.9271]
[1725742802795,11.537,127.35,127.33,3.9269]
[1725742803796,11.537,127.35,127.32,3.9271]
[1725742805598,15.4634,127.35,127.32,3.9271]
[1725742805798,10.23,127.34,127.32,3.9271]
[1725742806093,10.23,127.33,127.25,14.10288002]
[1725742806298,10.23,127.31,127.25,10.23]
[1725742806598,10.23,127.31,127.29,3.928]
[1725742807391,3.87824037,127.34,127.24,10.23]
[1725742807597,10.23,127.31,127.24,10.23]
[1725742807792,10.23,127.31,127.25,10.23]
[1725742807992,10.23,127.31,127.23,2.3304]
[1725742808196,7.93249882,127.33,127.25,10.23]
[1725742808387,10.23,127.32,127.25,10.23]
[1725742808591,2.6468,127.35,127.28,10.23]
[1725742808793,10.23,127.34,127.28,10.23]
[1725742809001,10.23,127.34,127.31,3.9274]
[1725742809692,10.23,127.33,127.3,3.9278]
[1725742812098,10.23,127.34,127.29,3.85990414]
[1725742812402,10.23,127.34,127.27,10.23]
[1725742812596,10.23,127.33,127.3,3.9277]
[1725742815902,10.23,127.33,127.31,3.9275]
[1725742816796,6.5733,127.35,127.32,3.9272]
[1725742817005,12.8768,127.35,127.27,10.23]
[1725742817401,1.307,127.35,127.29,10.23]
[1725742817702,1.3834,127.36,127.3,10.23]
[1725742818104,1.3834,127.36,127.33,3.9266]
[1725742818299,1.3834,127.36,127.3,10.23]
[1725742818701,1.3834,127.36,127.34,3.9265]
[1725742823911,10.23,127.38,127.32,10.23]
[1725742824116,12.9545,127.4,127.33,10.23]
[1725742824611,16.8794,127.4,127.36,3.9257]
[1725742825313,16.8794,127.4,127.37,3.9257]
[1725742827813,12.9545,127.4,127.35,3.98382852]
[1725742828116,12.9545,127.4,127.34,10.23]
[1725742828616,12.9545,127.4,127.34,14.11526778]
[1725742830402,12.9545,127.4,127.38,3.9254]
[1725742832018,2.7245,127.4,127.38,3.9254]
[1725742833416,6.6493,127.4,127.37,3.9256]
[1725742833715,2.7245,127.4,127.34,14.11526778]
[1725742835108,1.3901,127.4,127.34,14.11526778]
[1725742835310,10.23,127.41,127.36,10.23]
[1725742836410,10.23,127.41,127.38,3.9252]
[1725742839420,10.23,127.41,127.39,3.9251]
[1725742840019,10.23,127.42,127.35,10.23]
[1725742840720,10.23,127.42,127.39,3.9249]
[1725742841709,14.1542,127.42,127.39,3.9249]
[1725742842311,10.23,127.42,127.4,3.9247]
[1725742844612,14.1542,127.42,127.4,3.9247]
[1725742846619,1.3915,127.43,127.37,10.23]
[1725742847119,1.3915,127.43,127.39,10.23]
[1725742847324,1.3915,127.43,127.42,3.9242]
[1725742849214,1.3915,127.43,127.4,3.9246]
[1725742849422,11.6215,127.43,127.4,3.9246]
[1725742850315,15.5454,127.43,127.4,3.9246]
[1725742850723,11.6215,127.43,127.39,3.925]
[1725742851026,3.9242,127.42,127.39,3.925]
[1725742853433,14.1546,127.41,127.38,3.9253]
[1725742853632,14.1546,127.41,127.32,3.165]
[1725742853633,10.23,127.41,127.35,10.23]
[1725742853828,10.23,127.41,127.35,14.07548147]
[1725742854530,10.23,127.41,127.38,3.9251]
[1725742855432,14.1546,127.41,127.38,3.9251]
[1725742855628,10.23,127.41,127.37,3.9257]
[1725742856031,14.1546,127.41,127.37,3.9257]
[1725742858030,14.1546,127.41,127.38,3.9253]
[1725742861929,1.3915,127.43,127.37,10.23]
[1725742862128,11.5469,127.45,127.39,10.23]
[1725742862428,15.4703,127.45,127.41,3.9243]
[1725742862943,1.3169,127.45,127.4,14.2343188]
[1725742863539,5.2402,127.45,127.41,3.9243]
[1725742864540,5.2402,127.45,127.42,3.9242]
[1725742865939,1.3329,127.46,127.4,14.2343188]
[1725742866332,1.3329,127.46,127.43,3.9237]
[1725742867743,5.256,127.46,127.43,3.9237]
[1725742867933,10.23,127.45,127.41,3.9243]
[1725742868138,10.23,127.44,127.41,3.9243]
[1725742868339,14.1538,127.44,127.41,3.9243]
[1725742868540,14.1538,127.44,127.4,3.9246]
[1725742870251,1.3329,127.46,127.39,4.00354003]
[1725742870449,10.23,127.45,127.38,10.23]
[1725742870746,14.1535,127.45,127.41,3.9243]
[1725742871540,1.3329,127.46,127.4,14.12425341]
[1725742871847,1.3329,127.46,127.4,10.23]
[1725742872052,1.3329,127.46,127.43,3.9237]
[1725742873449,1.3329,127.46,127.44,3.9235]
[1725742876646,5.2561,127.46,127.43,3.9236]
[1725742876848,10.23,127.45,127.4,3.99002983]
[1725742877050,14.1535,127.45,127.42,3.924]
[1725742880454,5.256,127.46,127.43,3.9239]
[1725742881053,5.256,127.46,127.44,3.9236]
[1725742883648,5.256,127.46,127.4,14.22002983]
[1725742883649,3.9234,127.45,127.43,3.9238]
[1725742883845,14.1534,127.45,127.4,3.99002983]
[1725742884054,10.23,127.45,127.38,10.23]
[1725742884357,3.9237,127.44,127.38,10.23]
[1725742884553,3.9237,127.44,127.39,10.23]
[1725742885554,3.86420113,127.48,127.36,6.25230847]
[1725742885555,23.4780842,127.5,127.42,10.23]
[1725742885755,27.46772042,127.59,127.37,3.63351374]
[1725742885962,10.23,127.58,127.52,10.23]
[1725742886161,2.638,127.61,127.52,10.23]
[1725742886455,10.23,127.59,127.53,3.84448729]
[1725742887055,10.23,127.59,127.54,3.9203]
[1725742887356,10.23,127.58,127.54,3.9203]
[1725742887952,33.41181084,127.6,127.54,3.9203]
[1725742890054,53.05311084,127.6,127.49,25.58]
[1725742890262,0.28826842,127.59,127.49,29.50487452]
[1725742890452,3.9195,127.58,127.49,29.50487452]
[1725742891359,3.9195,127.58,127.53,3.9207]
[1725742893463,49.14,127.56,127.47,4.17164258]
[1725742893758,49.14,127.54,127.4,11.24996192]
[1725742893951,25.58,127.52,127.41,4.17329698]
[1725742894153,29.56039215,127.52,127.42,25.58]
[1725742894458,3.9219,127.5,127.45,3.923]
[1725742894669,2.758,127.49,127.45,3.923]
[1725742895250,6.6801,127.49,127.44,3.9235]
[1725742895455,8.032,127.49,127.44,3.9235]
[1725742896458,8.032,127.49,127.45,3.9232]
[1725742898153,4.1099,127.49,127.46,3.9227]
[1725742898667,4.1099,127.49,127.42,25.58]
[1725742898963,8.0321,127.49,127.45,3.9231]
[1725742901262,3.9224,127.48,127.45,3.9231]
[1725742901469,3.9224,127.48,127.44,3.9234]
[1725742903062,3.9224,127.48,127.45,3.9232]
[1725742904568,4.1099,127.49,127.47,3.9224]
[1725742904871,4.1099,127.49,127.43,3.90676502]
[1725742905077,8.0319,127.49,127.46,3.9228]
[1725742905667,8.0319,127.49,127.43,3.90676502]
[1725742905668,4.1099,127.49,127.43,3.90676502]
[1725742905864,3.9224,127.48,127.45,3.9231]
[1725742908070,3.9227,127.47,127.44,3.9235]
[1725742908968,3.9224,127.48,127.44,3.9235]
[1725742911667,3.9224,127.48,127.45,3.9232]
[1725742916577,3.9224,127.48,127.43,3.86429636]
[1725742918277,3.9224,127.48,127.44,3.9234]
[1725742919365,4.1099,127.49,127.44,3.9234]
[1725742919366,6.6801,127.49,127.44,10.25]
[1725742920069,6.6801,127.49,127.45,3.9231]
[1725742921674,2.758,127.49,127.44,14.13116666]
[1725742922083,1.3121,127.51,127.46,10.25]
[1725742922581,1.3121,127.51,127.48,3.9221]
[1725742924282,5.2336,127.51,127.48,3.9221]
[1725742926776,10.25,127.49,127.36,11.68207831]
[1725742926980,1.3121,127.51,127.41,10.25]
[1725742926981,10.25,127.48,127.41,10.25]
[1725742927485,10.25,127.48,127.44,3.9234]
[1725742927486,14.1725,127.48,127.44,3.9234]
[1725742928579,14.1725,127.48,127.41,10.25]
[1725742928580,3.9229,127.47,127.43,3.9238]
[1725742930387,3.9229,127.46,127.43,3.9238]
[1725742930785,3.9227,127.47,127.43,3.9238]
[1725742936887,10.25,127.48,127.42,3.924]
[1725742937192,10.25,127.46,127.39,10.25]
[1725742937988,14.1731,127.46,127.42,3.924]
[1725742939288,3.9233,127.45,127.42,3.924]
[1725742941887,3.9233,127.45,127.4,10.25]
[1725742942087,3.9236,127.44,127.4,10.25]
[1725742942489,10.25,127.44,127.4,3.9246]
[1725742942689,10.25,127.44,127.38,10.25]
[1725742943492,3.924,127.43,127.4,3.9246]
[1725742949896,3.9244,127.42,127.39,3.925]
[1725742950503,3.9244,127.42,127.39,3.9251]
[1725742951201,3.9244,127.42,127.38,3.9252]
[1725742951595,3.9244,127.42,127.39,3.925]
[1725742951902,7.77505766,127.45,127.38,10.25]
[1725742952094,18.02505766,127.45,127.36,3.82997831]
[1725742952398,18.02505766,127.45,127.4,3.9246]
[1725742952604,10.25,127.44,127.37,10.25]
[1725742954305,3.9242,127.42,127.39,3.9249]
[1725742956903,10.25,127.42,127.33,149.53226922]
[1725742957106,10.25,127.39,127.33,149.53226922]
[1725742957795,14.1753,127.39,127.36,3.9259]
[1725742959497,3.9253,127.39,127.36,3.9259]
[1725742959702,3.9249,127.4,127.36,3.9259]
[1725742963109,2.7524,127.4,127.36,3.9259]
[1725742964408,3.9252,127.39,127.36,3.9259]
[1725742967907,3.9251,127.39,127.36,3.9259]
[1725742968105,2.7524,127.4,127.36,3.9259]
[1725742968710,10.25,127.39,127.33,149.53226922]
[1725742969315,14.1753,127.39,127.33,149.53226922]
[1725742969813,14.1753,127.39,127.35,3.9261]
[1725742971302,3.9253,127.39,127.35,3.9261]
[1725742971510,14.1753,127.39,127.35,3.9261]
[1725742972602,14.1753,127.39,127.36,3.926]
[1725742975312,2.7524,127.4,127.33,149.71332293]
[1725742975313,2.7524,127.4,127.34,10.25]
[1725742975709,6.6772,127.4,127.36,3.9257]
[1725742976208,6.6772,127.4,127.34,10.25]
[1725742977007,16.9272,127.4,127.36,3.9258]
[1725742977213,3.9251,127.39,127.36,3.9258]
[1725742977613,13.0024,127.4,127.36,3.9258]
[1725742977816,16.9274,127.4,127.36,3.9258]
[1725742979921,16.9274,127.4,127.37,3.9257]
[1725742980619,16.9274,127.4,127.36,3.9258]
[1725742981013,16.9274,127.4,127.34,10.25]
[1725742981920,16.9274,127.4,127.36,3.9258]
[1725742982321,3.9251,127.39,127.36,3.9258]
[1725742982721,3.9251,127.39,127.35,3.9262]
[1725742983117,3.9251,127.39,127.34,10.25]
[1725742983623,3.9251,127.39,127.36,3.9259]
[1725742984928,16.9273,127.4,127.37,3.9257]
[1725742985919,3.9252,127.39,127.37,3.9257]
[1725742987926,6.6773,127.4,127.34,10.25]
[1725742988131,2.7524,127.4,127.35,10.25]
[1725742988331,13.0024,127.4,127.34,10.25]
[1725742988726,13.0024,127.4,127.33,10.25]
[1725742988727,16.9274,127.4,127.33,10.25]
[1725742989638,16.9274,127.4,127.36,3.9258]
[1725742991534,16.9274,127.4,127.37,3.9257]
[1725742992837,13.0024,127.4,127.33,10.25]
[1725742994239,16.9272,127.4,127.37,3.9256]
[1725743000147,5.19995766,127.45,127.37,10.25]
[1725743000351,10.25,127.44,127.37,10.25]
[1725743000845,3.924,127.43,127.4,3.9248]
[1725743014852,10.25,127.42,127.35,10.25]
[1725743015158,3.9243,127.42,127.35,10.25]
[1725743015348,3.9243,127.42,127.36,10.25]
[1725743015548,49.15595574,127.45,127.36,10.25]
[1725743015749,49.15595574,127.45,127.39,3.9249]
[1725743015750,3.9242,127.42,127.39,3.9249]
[1725743028462,3.9242,127.42,127.4,3.9248]
[1725743030668,5.19995766,127.45,127.39,14.11590248]
[1725743030965,5.19995766,127.45,127.39,10.25]
[1725743031361,3.9239,127.44,127.41,3.9243]
[1725743038170,3.924,127.43,127.4,3.9246]
[1725743045378,10.25,127.44,127.32,144.57520191]
[1725743045379,23.57,127.44,127.32,144.57520191]
[1725743045586,10.25,127.41,127.35,10.25]
[1725743046085,3.9251,127.4,127.36,3.9258]
[1725743048772,5.3033,127.41,127.36,10.25]
[1725743048973,2.7061,127.42,127.38,10.25]
[1725743049169,3.89865766,127.45,127.42,3.9241]
[1725743049375,3.9231,127.46,127.42,3.9241]
[1725743049580,11.6074,127.47,127.42,3.9241]
[1725743050380,3.9233,127.45,127.42,3.9241]
[1725743056585,20.37384407,127.51,127.43,10.25]
[1725743056778,2.7173,127.49,127.43,10.25]
[1725743057084,12.9673,127.49,127.43,10.25]
[1725743057279,16.8895,127.49,127.45,3.9231]
[1725743059786,16.8895,127.49,127.46,3.9228]
[1725743062790,6.6395,127.49,127.46,3.9228]
[1725743063088,16.8895,127.49,127.46,3.9228]
[1725743067497,3.9224,127.48,127.46,3.9228]
[1725743067894,24.35423622,127.52,127.47,3.9226]
[1725743068198,3.922,127.5,127.47,3.9226]
[1725743068889,7.93746978,127.5,127.47,3.9226]
[1725743071094,3.922,127.49,127.47,3.9226]
[1725743073998,3.9224,127.48,127.46,3.9228]
[1725743078199,3.9227,127.47,127.44,3.9234]
[1725743078704,10.25,127.49,127.42,138.88792471]
[1725743078896,3.9225,127.48,127.45,3.9231]
[1725743086112,3.9222,127.49,127.46,3.9227]
[1725743086510,3.9222,127.49,127.44,6.3197]
[1725743086714,5.42716978,127.5,127.44,6.3197]
[1725743087513,3.9224,127.48,127.45,3.9231]
[1725743091415,15.67716978,127.5,127.45,3.9231]
[1725743092119,3.9225,127.48,127.45,3.9231]
[1725743092320,3.9225,127.48,127.46,3.9229]
[1725743098825,3.9225,127.48,127.45,3.9231]
[1725743103231,10.25,127.46,127.33,494.19787045]
[1725743103436,23.57,127.48,127.38,10.25]
[1725743103437,10.25,127.45,127.38,10.25]
[1725743103634,3.924,127.43,127.4,3.9246]
[1725743103829,14.19836214,127.43,127.33,494.19787045]
[1725743104132,23.57,127.46,127.33,494.19787045]
[1725743104133,10.25,127.42,127.33,494.19787045]
[1725743104334,10.25,127.42,127.34,10.25]
[1725743104335,3.87144345,127.41,127.34,10.25]
[1725743104538,5.18384345,127.41,127.34,10.25]
[1725743104741,3.9249,127.4,127.36,3.9258]
[1725743105037,3.9249,127.4,127.34,10.25]
[1725743105227,9.10844345,127.41,127.37,3.9255]
[1725743109233,9.10844345,127.41,127.38,3.9254]
[1725743109536,11.6591,127.42,127.37,10.25]
[1725743109537,5.3334,127.42,127.37,10.25]
[1725743111232,1.4091,127.42,127.37,10.25]
[1725743111430,3.924,127.43,127.37,10.25]
[1725743112035,3.924,127.43,127.39,3.9249]
[1725743112632,3.9242,127.42,127.39,3.9249]
[1725743113530,3.924,127.43,127.39,3.9249]
[1725743113735,7.89275673,127.43,127.39,3.9249]
[1725743114345,1.3535,127.45,127.43,3.9239]
[1725743114841,11.582,127.47,127.43,3.9239]
[1725743115240,3.9231,127.46,127.43,3.9239]
[1725743116339,3.923,127.46,127.43,3.9239]
[1725743116542,11.582,127.47,127.4,10.25]
[1725743116938,3.9233,127.45,127.42,3.924]
[1725743119039,3.9233,127.45,127.43,3.9238]
[1725743128345,15.5049,127.47,127.44,3.9236]
[1725743128540,1.332,127.47,127.44,3.9236]
[1725743128841,1.332,127.47,127.41,10.25]
[1725743129049,3.9232,127.46,127.43,3.9237]
[1725743129856,3.9233,127.45,127.43,3.9237]
[1725743130050,10.25,127.45,127.39,3.99270511]
[1725743130355,3.9237,127.44,127.38,10.25]
[1725743130652,3.9237,127.44,127.41,3.9243]
[1725743141256,3.9234,127.45,127.41,10.25]
[1725743141852,1.332,127.47,127.41,10.25]
[1725743142959,3.9233,127.45,127.42,3.924]
[1725743144662,3.9231,127.46,127.43,3.9238]
[1725743149469,3.9233,127.45,127.43,3.9238]
[1725743152468,3.9231,127.46,127.43,3.9238]
[1725743153079,5.2548,127.47,127.44,3.9235]
[1725743155969,5.2548,127.47,127.45,3.9232]
[1725743161475,5.2548,127.47,127.44,3.9234]
[1725743162671,5.2548,127.47,127.45,3.9232]
[1725743165161,1.332,127.47,127.42,10.25]
[1725743165368,3.923,127.46,127.44,3.9234]
[1725743166075,3.923,127.46,127.43,3.9237]
[1725743166275,3.923,127.46,127.42,10.25]
[1725743166769,3.923,127.46,127.43,4.00243309]
[1725743167275,5.2548,127.47,127.44,3.9234]
[1725743170677,3.9231,127.46,127.43,3.9237]
[1725743171680,3.9233,127.45,127.43,3.9237]
[1725743172483,3.9231,127.46,127.43,3.9237]
[1725743176597,3.9231,127.46,127.44,3.9235]
[1725743177797,1.332,127.47,127.44,3.9235]
[1725743177798,5.2548,127.47,127.44,3.9235]
[1725743178496,3.9225,127.48,127.43,10.25]
[1725743178792,4.01546978,127.5,127.43,10.25]
[1725743178998,10.25,127.51,127.43,10.25]
[1725743178999,3.9223,127.49,127.43,10.25]
[1725743179701,3.9223,127.49,127.46,3.9229]
[1725743182898,3.9224,127.48,127.45,18.00609325]
[1725743186901,3.9216,127.51,127.48,3.9221]
[1725743187092,3.9216,127.51,127.46,10.25]
[1725743187295,3.9997,127.52,127.46,10.25]
[1725743187596,7.96384117,127.52,127.46,10.25]
[1725743188394,3.9218,127.5,127.47,3.9225]
[1725743191199,7.96384117,127.52,127.45,146.11696279]
[1725743191398,7.96384117,127.52,127.45,156.36696279]
[1725743192607,3.9219,127.5,127.47,3.9225]
[1725743194103,7.96384117,127.52,127.47,10.25]
[1725743194307,3.9997,127.52,127.47,10.25]
[1725743194903,7.921,127.52,127.48,3.922]
[1725743195600,7.921,127.52,127.49,3.922]
[1725743196213,3.9217,127.51,127.48,3.9222]
[1725743197410,7.921,127.52,127.49,3.922]
[1725743199113,6.6421,127.52,127.49,3.922]
[1725743201506,2.7208,127.52,127.45,146.11696279]
[1725743201706,12.9708,127.52,127.46,10.25]
[1725743202214,10.25,127.51,127.45,142.28396954]
[1725743202417,11.5912,127.51,127.45,142.28396954]
[1725743203602,3.9223,127.49,127.45,146.20706954]
[1725743206515,3.9224,127.48,127.45,146.20706954]
[1725743208211,11.5912,127.51,127.45,146.20706954]
[1725743208212,3.9229,127.47,127.45,142.28396954]
[1725743208414,3.9229,127.47,127.44,3.9235]
[1725743209317,1.2906,127.48,127.43,3.90253472]
[1725743209617,3.9232,127.46,127.42,10.25]
[1725743209818,3.9232,127.46,127.43,3.95354312]
[1725743211518,3.9232,127.46,127.43,7.87714312]
[1725743217412,3.9232,127.46,127.44,3.9236]
[1725743222129,3.9232,127.46,127.43,3.9237]
[1725743223325,10.25,127.45,127.34,495.43813063]
[1725743223620,10.25,127.45,127.32,3.97981622]
[1725743223621,10.25,127.42,127.32,3.97981622]
[1725743224018,1.2983,127.45,127.32,3.97981622]
[1725743224019,10.25,127.4,127.32,3.97981622]
[1725743224217,10.25,127.4,127.24,7.859]
[1725743224218,3.9259,127.37,127.24,7.859]
[1725743224419,10.25,127.37,127.24,7.859]
[1725743224628,10.25,127.37,127.3,10.25]
[1725743224827,10.25,127.37,127.31,4.01272384]
[1725743225225,4.00644046,127.38,127.2,3.86629504]
[1725743225421,10.25,127.36,127.29,10.25]
[1725743225730,3.87527489,127.37,127.31,10.25]
[1725743225921,11.5483,127.39,127.32,10.25]
[1725743226121,3.90472824,127.38,127.32,10.25]
[1725743226824,3.90472824,127.38,127.32,14.07972038]
[1725743227033,3.9259,127.37,127.33,3.9267]
[1725743227329,3.9259,127.37,127.32,14.07972038]
[1725743228426,3.9259,127.37,127.33,3.9269]
[1725743230431,3.9257,127.37,127.32,18.00672038]
[1725743231031,3.9257,127.37,127.33,3.9269]
[1725743231432,3.9261,127.36,127.33,3.9269]
[1725743231731,3.9261,127.36,127.32,18.00682038]
[1725743231934,3.9259,127.37,127.32,14.07972038]
[1725743232236,3.9259,127.37,127.33,3.9268]
[1725743232625,3.9254,127.38,127.32,14.07972038]
[1725743232933,3.9254,127.38,127.34,3.9264]
[1725743233331,3.9258,127.37,127.34,3.9264]
[1725743233738,3.9258,127.37,127.33,3.9268]
[1725743236031,3.9262,127.36,127.33,3.9268]
[1725743238329,3.9264,127.35,127.32,3.9271]
[1725743247644,10.25,127.36,127.3,131.59306079]
[1725743247941,12.8702,127.36,127.3,135.47814922]
[1725743248143,12.8702,127.36,127.31,3.9274]
[1725743248144,3.9268,127.34,127.31,3.9274]
[1725743253752,3.9265,127.35,127.31,3.9274]
[1725743255656,1.2943,127.36,127.31,10.25]
[1725743256249,1.2943,127.36,127.33,3.9268]
[1725743259760,9.16357225,127.39,127.33,10.25]
[1725743259953,5.2235,127.39,127.33,10.25]
[1725743260554,5.2235,127.39,127.35,3.9261]
[1725743260960,5.2235,127.39,127.33,10.25]
[1725743262467,5.2235,127.39,127.36,3.926]
[1725743265067,15.4735,127.39,127.36,3.926]
[1725743265274,15.4735,127.39,127.3,131.59306079]
[1725743265275,10.25,127.38,127.3,131.59306079]
[1725743265773,10.25,127.38,127.31,10.25]
[1725743265974,14.1756,127.38,127.35,3.9263]
[1725743271871,14.1756,127.38,127.36,3.926]
[1725743272068,3.9256,127.38,127.36,3.926]
[1725743272264,3.9256,127.38,127.32,10.25]
[1725743272674,3.9256,127.38,127.35,3.9262]
[1725743272870,3.9256,127.38,127.32,10.25]
[1725743273779,3.9256,127.38,127.35,3.9261]
[1725743281670,9.23710926,127.39,127.36,3.9259]
[1725743281873,1.3389,127.41,127.35,10.25]
[1725743282178,1.31,127.44,127.38,10.25]
[1725743282376,1.31,127.44,127.39,3.90049477]
[1725743282572,1.31,127.44,127.4,3.9246]
[1725743282975,5.2337,127.44,127.41,3.9243]
[1725743284473,5.2337,127.44,127.42,3.9242]
[1725743286076,5.2337,127.44,127.41,3.9243]
[1725743286978,1.3776,127.45,127.4,10.25]
[1725743287280,23.57,127.52,127.44,3.9236]
[1725743287281,3.9228,127.47,127.44,3.9236]
[1725743287489,1.3733,127.49,127.44,3.9236]
[1725743287677,3.9226,127.48,127.41,10.25]
[1725743287977,11.6233,127.49,127.43,10.25]
[1725743288182,5.2954,127.49,127.46,3.9228]
[1725743288383,1.3733,127.49,127.43,10.25]
[1725743288574,1.3577,127.51,127.45,10.25]
[1725743288775,5.2792,127.51,127.48,3.9222]
[1725743289882,1.3577,127.51,127.49,3.922]
[1725743290181,1.3577,127.51,127.47,10.25]
[1725743290388,1.356,127.52,127.5,3.9214]
[1725743291074,5.36671671,127.53,127.5,3.9214]
[1725743291277,6.5915,127.55,127.5,10.25]
[1725743292282,2.6712,127.55,127.51,10.25]
[1725743293186,2.6712,127.55,127.53,3.9206]